[Event "Turkish Championship 2023"]
[Site "Kemer Antalya"]
[Date "2023.12.02"]
[Round "1"]
[White "Yilmazyerli, Mert"]
[Black "Tirpan, Ceren"]
[Result "1-0"]
[ECO "E17"]
[WhiteElo "2524"]
[BlackElo "1940"]
[Annotator "ChessBase"]
[PlyCount "75"]
[EventDate "2023.12.01"]
[EventType "tourn"]
[EventCountry "TUR"]
[SourceTitle "playchess.com"]
[Source "ChessBase"]
[SourceQuality "1"]
[TimeControl "40/5400+30:1800+30"]

1. d4 {[%emt 0:01:00]} Nf6 {[%emt 0:01:00]} 2. c4 {[%emt 0:00:30]} e6 {[%emt 0:00:30]} 3. Nf3 {[%emt 0:00:00]} b6 {[%emt 0:00:00]} 4. g3 {[%emt 0:00:00]} Bb7 {[%emt 0:00:00]} 5. Bg2 {[%emt 0:00:00]} Be7 {[%emt 0:00:00]} 6. O-O {[%emt 0:00:00]} O-O {[%emt 0:01:00]} 7. Re1 {[%emt 0:00:00]} d5 {[%emt 0:06:30]} 8. cxd5 {[%emt 0:00:00]} exd5 {[%emt 0:00:30]} 9. Nc3 {[%emt 0:00:00]} Ne4 {[%emt 0:06:30]} 10. Bf4 {[%emt 0:00:00]} Nxc3 {[%emt 0:13:30]} 11. bxc3 {[%emt 0:00:30]} Nc6 {[%emt 0:00:00]} 12. Qd3 {[%emt 0:08:30]} Na5 {[%emt 0:12:00]} 13. h4 {[%emt 0:00:00]} h6 {[%emt 0:10:30]} 14. Ne5 {[%emt 0:00:00]} Bd6 {[%emt 0:00:30]} 15. Rad1 {[%emt 0:15:30]} Nc4 {[%emt 0:17:30]} 16. Qf5 {[%emt 0:08:30]} Nb2 {[%emt 0:08:30]} 17. Rd2 {[%emt 0:07:30]} Na4 {[%emt 0:00:30]} 18. Qc2 {[%emt 0:00:30]} b5 {[%emt 0:00:30]} 19. Rb1 {[%emt 0:00:30]} c6 {[%emt 0:04:35]} 20. e4 {[%emt 0:06:30]} Rc8 {[%emt 0:02:45]} 21. Re2 {[%emt 0:08:30]} a6 {[%emt 0:00:10]} 22. Bd2 {[%emt 0:06:30]} c5 {[%emt 0:02:39]} 23. exd5 {[%emt 0:00:30]} cxd4 {[%emt 0:00:11]} 24. Nc6 {[%emt 0:00:30]} Bxc6 {[%emt 0:01:04]} 25. dxc6 {[%emt 0:00:30]} Bxg3 {[%emt 0:03:27]} 26. cxd4 {[%emt 0:00:30]} Bc7 {[%emt 0:00:18]} 27. Bb4 {[%emt 0:03:30]} Bd6 {[%emt 0:04:48]} 28. d5 {[%emt 0:00:30]} Bxb4 {[%emt 0:00:30]} 29. Rxb4 {[%emt 0:00:30]} Qd6 {[%emt 0:01:04]} 30. Rg4 {[%emt 0:01:30]} Rfd8 {[%emt 0:01:31]} 31. Re3 {[%emt 0:01:30]} Qf6 {[%emt 0:00:36]} 32. Reg3 {[%emt 0:00:30]} Nb6 {[%emt 0:02:25]} 33. Rxg7+ {[%emt 0:00:30]} Qxg7 {[%emt 0:00:30]} 34. Rxg7+ {[%emt 0:00:30]} Kxg7 {[%emt 0:00:30]} 35. Qc3+ {[%emt 0:00:30]} Kg8 {[%emt 0:00:30]} 36. Qg3+ {[%emt 0:00:00]} Kh8 {[%emt 0:00:00]} 37. Qe5+ {[%emt 0:00:00]} Kg8 {[%emt 0:00:00]} 38. d6 {[%emt 0:00:00]} 1-0

[Event "Turkish Championship 2023"]
[Site "Kemer Antalya"]
[Date "2023.12.02"]
[Round "1"]
[White "Tarhan, Adar"]
[Black "Isik, Alparslan"]
[Result "1/2-1/2"]
[ECO "B31"]
[WhiteElo "2434"]
[BlackElo "2452"]
[Annotator "ChessBase"]
[PlyCount "120"]
[EventDate "2023.12.01"]
[EventType "tourn"]
[EventCountry "TUR"]
[SourceTitle "playchess.com"]
[Source "ChessBase"]
[SourceQuality "1"]
[TimeControl "40/5400+30:1800+30"]

1. e4 {[%emt 0:01:00]} c5 {[%emt 0:01:00]} 2. Nf3 {[%emt 0:00:00]} Nc6 {[%emt 0:00:30]} 3. Bb5 {[%emt 0:00:00]} g6 {[%emt 0:00:30]} 4. Bxc6 {[%emt 0:00:30]} bxc6 {[%emt 0:00:00]} 5. O-O {[%emt 0:32:30]} Bg7 {[%emt 0:00:00]} 6. c3 {[%emt 0:00:00]} Nf6 {[%emt 0:01:30]} 7. Re1 {[%emt 0:00:00]} O-O {[%emt 0:00:30]} 8. d4 {[%emt 0:00:00]} cxd4 {[%emt 1:08:30]} 9. cxd4 {[%emt 0:00:00]} d6 {[%emt 0:00:00]} 10. h3 {[%emt 0:00:00]} Nd7 {[%emt 0:00:00]} 11. Nc3 {[%emt 0:00:00]} c5 {[%emt 0:00:00]} 12. Be3 {[%emt 0:00:00]} Bb7 {[%emt 0:00:00]} 13. Rc1 {[%emt 0:00:00]} Rc8 {[%emt 0:00:00]} 14. Qd2 {[%emt 0:00:00]} Re8 {[%emt 0:00:00]} 15. Bh6 {[%emt 0:00:00]} Bh8 {[%emt 0:00:00]} 16. d5 {[%emt 0:00:00]} Qa5 {[%emt 0:00:00]} 17. Bf4 {[%emt 0:02:00]} c4 {[%emt 0:00:00]} 18. e5 {[%emt 0:03:30]} dxe5 {[%emt 0:00:00]} 19. Nxe5 {[%emt 0:00:00]} Nb6 {[%emt 0:00:00]} 20. d6 {[%emt 0:05:00]} exd6 {[%emt 0:14:14]} 21. Ng4 {[%emt 0:00:00]} Bg7 {[%emt 0:05:59]} 22. Rxe8+ {[%emt 0:56:35]} Rxe8 {[%emt 0:07:14]} 23. Re1 {[%emt 0:00:30]} Rxe1+ {[%emt 0:00:00]} 24. Qxe1 {[%emt 0:00:00]} Be5 {[%emt 0:00:00]} 25. Nxe5 {[%emt 0:00:00]} dxe5 {[%emt 0:00:00]} 26. Bxe5 {[%emt 0:00:00]} Qc5 {[%emt 0:00:00]} 27. Bf4 {[%emt 0:00:00]} Qc6 {[%emt 0:00:00]} 28. f3 {[%emt 0:00:00]} Qe6 {[%emt 0:00:00]} 29. Qd2 {[%emt 0:00:00]} Nd7 {[%emt 0:00:00]} 30. Kh2 {[%emt 0:00:00]} a6 {[%emt 0:00:00]} 31. Qd4 {[%emt 0:00:00]} f6 {[%emt 0:00:00]} 32. Nd1 {[%emt 0:00:00]} Qd5 {[%emt 0:00:00]} 33. Qa7 {[%emt 0:00:00]} Qc6 {[%emt 0:00:00]} 34. Ne3 {[%emt 0:00:00]} Qb6 {[%emt 0:00:00]} 35. Qxb6 {[%emt 0:00:00]} Nxb6 {[%emt 0:00:00]} 36. Bd6 {[%emt 0:00:00]} Bc8 {[%emt 0:00:00]} 37. Bc5 {[%emt 0:00:00]} Na4 {[%emt 0:00:00]} 38. Bd4 {[%emt 0:00:00]} Be6 {[%emt 0:00:00]} 39. Bxf6 {[%emt 0:00:00]} Nc5 {[%emt 0:00:00]} 40. Kg1 {[%emt 0:00:00]} Kf7 {[%emt 0:00:00]} 41. Bd4 {[%emt 0:00:00]} Nd3 {[%emt 0:18:03]} 42. Kf1 {[%emt 0:00:00]} c3 {[%emt 0:00:30]} 43. Bxc3 {[%emt 0:00:00]} Bxa2 {[%emt 0:02:30]} 44. Ke2 {[%emt 0:00:00]} Nf4+ {[%emt 0:00:30]} 45. Kd2 {[%emt 0:00:00]} Nd5 {[%emt 0:01:30]} 46. Nc2 {[%emt 0:00:00]} g5 {[%emt 0:03:08]} 47. Be5 {[%emt 0:00:00]} Bc4 {[%emt 0:00:45]} 48. Ke1 {[%emt 0:00:00]} Ke6 {[%emt 0:01:45]} 49. Bb8 {[%emt 0:00:00]} Nb6 {[%emt 0:02:09]} 50. Ba7 {[%emt 0:00:00]} Nd5 {[%emt 0:00:23]} 51. Kf2 {[%emt 0:00:00]} Bd3 {[%emt 0:00:00]} 52. Nd4+ {[%emt 0:00:00]} Ke5 {[%emt 0:03:22]} 53. Nb3 {[%emt 0:00:00]} Nf4 {[%emt 0:02:25]} 54. h4 {[%emt 0:42:19]} h6 {[%emt 0:03:40]} 55. g3 {[%emt 0:00:00]} Ne6 {[%emt 0:00:30]} 56. h5 {[%emt 0:00:00]} Bc2 {[%emt 0:01:51]} 57. Nc5 {[%emt 0:00:00]} Nxc5 {[%emt 0:04:30]} 58. Bxc5 {[%emt 0:00:00]} g4 {[%emt 0:00:30]} 59. Bf8 {[%emt 0:00:00]} gxf3 {[%emt 0:00:30]} 60. Bxh6 {[%emt 0:00:00]} Kf5 {[%emt 0:00:30]} 1/2-1/2

[Event "Turkish Championship 2023"]
[Site "Kemer Antalya"]
[Date "2023.12.02"]
[Round "1"]
[White "Eren, Ataberk"]
[Black "Gunduz, Umut Erdem"]
[Result "1/2-1/2"]
[ECO "D37"]
[WhiteElo "2429"]
[BlackElo "2318"]
[Annotator "ChessBase"]
[PlyCount "97"]
[EventDate "2023.12.01"]
[EventType "tourn"]
[EventCountry "TUR"]
[SourceTitle "playchess.com"]
[Source "ChessBase"]
[SourceQuality "1"]
[TimeControl "40/5400+30:1800+30"]

1. d4 {[%emt 0:01:00]} d5 {[%emt 0:01:00]} 2. c4 {[%emt 0:00:30]} e6 {[%emt 0:00:00]} 3. Nc3 {[%emt 0:00:00]} a6 {[%emt 0:00:00]} 4. cxd5 {[%emt 0:00:00]} exd5 {[%emt 0:00:00]} 5. Nf3 {[%emt 0:00:30]} Nf6 {[%emt 0:00:00]} 6. Bg5 {[%emt 0:01:30]} Be6 {[%emt 0:00:30]} 7. e3 {[%emt 0:00:30]} Nbd7 {[%emt 0:00:00]} 8. Bd3 {[%emt 0:00:30]} Bd6 {[%emt 0:00:00]} 9. O-O {[%emt 0:00:30]} c6 {[%emt 0:00:00]} 10. Bf4 {[%emt 0:00:30]} Qc7 {[%emt 0:00:00]} 11. Bxd6 {[%emt 0:00:30]} Qxd6 {[%emt 0:00:30]} 12. Qb3 {[%emt 0:00:30]} O-O {[%emt 0:00:30]} 13. a4 {[%emt 0:00:30]} Bg4 {[%emt 0:11:30]} 14. Rfc1 {[%emt 0:08:30]} Bxf3 {[%emt 0:04:30]} 15. gxf3 {[%emt 0:00:30]} c5 {[%emt 0:06:30]} 16. dxc5 {[%emt 0:06:30]} Nxc5 {[%emt 0:00:30]} 17. Qa3 {[%emt 0:00:30]} Nfe4 {[%emt 0:10:30]} 18. Nxe4 {[%emt 0:36:30]} dxe4 {[%emt 0:00:30]} 19. Rxc5 {[%emt 0:11:30]} Qg6+ {[%emt 0:04:30]} 20. Kf1 {[%emt 0:06:30]} exd3 {[%emt 0:00:00]} 21. Rd1 {[%emt 0:05:27]} Rad8 {[%emt 0:11:00]} 22. Rc3 {[%emt 0:01:07]} d2 {[%emt 0:13:30]} 23. Ke2 {[%emt 0:01:05]} Qh5 {[%emt 0:01:30]} 24. Rd3 {[%emt 0:01:22]} Rxd3 {[%emt 0:02:30]} 25. Qxd3 {[%emt 0:00:30]} Qxh2 {[%emt 0:00:00]} 26. Rxd2 {[%emt 0:03:17]} Qc7 {[%emt 0:04:00]} 27. Qd5 {[%emt 0:03:11]} Rc8 {[%emt 0:05:30]} 28. f4 {[%emt 0:03:12]} h6 {[%emt 0:07:25]} 29. b3 {[%emt 0:01:41]} Re8 {[%emt 0:03:09]} 30. Qd7 {[%emt 0:01:55]} Re7 {[%emt 0:01:10]} 31. Qd5 {[%emt 0:00:24]} Re8 {[%emt 0:08:19]} 32. Qd7 {[%emt 0:00:51]} Re7 {[%emt 0:01:47]} 33. Qd5 {[%emt 0:02:36]} a5 {[%emt 0:04:42]} 34. Qd8+ {[%emt 0:01:56]} Qxd8 {[%emt 0:01:36]} 35. Rxd8+ {[%emt 0:00:30]} Kh7 {[%emt 0:00:00]} 36. Rd5 {[%emt 0:00:57]} b6 {[%emt 0:00:31]} 37. f5 {[%emt 0:00:22]} Re4 {[%emt 0:00:38]} 38. Kd3 {[%emt 0:01:00]} Rb4 {[%emt 0:00:24]} 39. Kc3 {[%emt 0:00:08]} f6 {[%emt 0:00:46]} 40. f3 {[%emt 0:00:00]} h5 {[%emt 0:00:00]} 41. f4 {[%emt 0:14:55]} h4 {[%emt 0:07:33]} 42. Rd1 {[%emt 0:03:12]} Kh6 {[%emt 0:00:30]} 43. Rg1 {[%emt 0:01:09]} Re4 {[%emt 0:02:30]} 44. Kd3 {[%emt 0:00:51]} Re7 {[%emt 0:00:30]} 45. Ke2 {[%emt 0:02:15]} Rc7 {[%emt 0:17:08]} 46. Kf3 {[%emt 0:00:40]} Rc3 {[%emt 0:02:39]} 47. Rg4 {[%emt 0:01:53]} Kh7 {[%emt 0:00:04]} 48. Rxh4+ {[%emt 0:01:59]} Kg8 {[%emt 0:00:01]} 49. Ke4 {[%emt 0:01:04]} 1/2-1/2

[Event "Turkish Championship 2023"]
[Site "Kemer Antalya"]
[Date "2023.12.02"]
[Round "1"]
[White "Bicer, Atakan Mert"]
[Black "Tuncer, Ufuk"]
[Result "1/2-1/2"]
[ECO "B94"]
[WhiteElo "2318"]
[BlackElo "2360"]
[Annotator "ChessBase"]
[PlyCount "133"]
[EventDate "2023.12.01"]
[EventType "tourn"]
[EventCountry "TUR"]
[SourceTitle "playchess.com"]
[Source "ChessBase"]
[SourceQuality "1"]
[TimeControl "40/5400+30:1800+30"]

1. e4 {[%emt 0:01:00]} c5 {[%emt 0:01:00]} 2. Nf3 {[%emt 0:00:00]} d6 {[%emt 0:00:30]} 3. d4 {[%emt 0:00:00]} cxd4 {[%emt 0:00:00]} 4. Nxd4 {[%emt 0:00:30]} Nf6 {[%emt 0:00:00]} 5. Nc3 {[%emt 0:00:30]} a6 {[%emt 0:00:00]} 6. Bg5 {[%emt 0:00:00]} Nbd7 {[%emt 0:00:00]} 7. Qe2 {[%emt 0:00:00]} h6 {[%emt 0:00:30]} 8. Bh4 {[%emt 0:00:30]} g6 {[%emt 0:00:00]} 9. O-O-O {[%emt 0:01:30]} e5 {[%emt 0:00:00]} 10. Nb3 {[%emt 0:04:30]} Be7 {[%emt 0:00:00]} 11. f3 {[%emt 0:06:30]} b5 {[%emt 0:02:00]} 12. a3 {[%emt 0:01:30]} Qc7 {[%emt 0:08:30]} 13. Kb1 {[%emt 0:15:30]} Bb7 {[%emt 0:00:30]} 14. Bf2 {[%emt 0:16:30]} Rc8 {[%emt 0:03:30]} 15. Qe3 {[%emt 0:06:30]} Kf8 {[%emt 0:08:30]} 16. Be2 {[%emt 0:05:30]} Kg7 {[%emt 0:00:30]} 17. Rhf1 {[%emt 0:02:30]} Rhd8 {[%emt 0:15:30]} 18. Rfe1 {[%emt 0:21:43]} Nh5 {[%emt 0:06:30]} 19. Qd2 {[%emt 0:01:49]} Nhf6 {[%emt 0:09:30]} 20. Bf1 {[%emt 0:01:54]} Nc5 {[%emt 0:05:30]} 21. Qe3 {[%emt 0:06:59]} h5 {[%emt 0:12:30]} 22. Rd2 {[%emt 0:03:57]} Kg8 {[%emt 0:06:52]} 23. Red1 {[%emt 0:00:45]} Ncd7 {[%emt 0:04:54]} 24. Nc1 {[%emt 0:01:09]} Bf8 {[%emt 0:04:47]} 25. h3 {[%emt 0:00:50]} Bc6 {[%emt 0:03:54]} 26. N1a2 {[%emt 0:00:44]} Rb8 {[%emt 0:01:08]} 27. Nb4 {[%emt 0:00:00]} Bb7 {[%emt 0:01:53]} 28. g4 {[%emt 0:00:36]} Rdc8 {[%emt 0:01:10]} 29. Bh4 {[%emt 0:00:40]} a5 {[%emt 0:01:53]} 30. Nxb5 {[%emt 0:00:17]} Qc5 {[%emt 0:00:08]} 31. Qxc5 {[%emt 0:00:30]} Rxc5 {[%emt 0:02:50]} 32. Na2 {[%emt 0:00:06]} hxg4 {[%emt 0:00:21]} 33. hxg4 {[%emt 0:00:05]} d5 {[%emt 0:00:04]} 34. b4 {[%emt 0:01:18]} axb4 {[%emt 0:00:38]} 35. axb4 {[%emt 0:00:04]} Rcc8 {[%emt 0:00:04]} 36. exd5 {[%emt 0:00:38]} Ne8 {[%emt 0:00:45]} 37. Na3 {[%emt 0:00:59]} Nd6 {[%emt 0:00:29]} 38. c4 {[%emt 0:00:31]} Ba6 {[%emt 0:00:43]} 39. Rc2 {[%emt 0:00:38]} e4 {[%emt 0:01:13]} 40. fxe4 {[%emt 0:00:00]} Nxe4 {[%emt 0:00:00]} 41. Be1 {[%emt 0:08:48]} Ne5 {[%emt 0:05:14]} 42. Rd4 {[%emt 0:08:20]} Nd6 {[%emt 0:05:30]} 43. Bg3 {[%emt 0:01:25]} Re8 {[%emt 0:04:06]} 44. Be2 {[%emt 0:03:18]} Nd7 {[%emt 0:01:07]} 45. Bf4 {[%emt 0:05:58]} f6 {[%emt 0:00:53]} 46. Kc1 {[%emt 0:01:28]} g5 {[%emt 0:01:32]} 47. Bh2 {[%emt 0:00:15]} Re3 {[%emt 0:00:28]} 48. Nb1 {[%emt 0:01:11]} Ne5 {[%emt 0:01:13]} 49. b5 {[%emt 0:00:56]} Bc8 {[%emt 0:01:26]} 50. Nac3 {[%emt 0:00:44]} Rh3 {[%emt 0:02:18]} 51. Bf1 {[%emt 0:02:36]} Rh4 {[%emt 0:00:03]} 52. Bxe5 {[%emt 0:01:30]} fxe5 {[%emt 0:00:05]} 53. Rd1 {[%emt 0:00:54]} Bxg4 54. Re1 {[%emt 0:00:00]} Bf5 {[%emt 0:00:46]} 55. Rg2 {[%emt 0:00:18]} Bxb1 {[%emt 0:00:21]} 56. Kxb1 {[%emt 0:00:37]} Nxc4 {[%emt 0:01:12]} 57. Rxg5+ {[%emt 0:00:15]} Kf7 {[%emt 0:02:56]} 58. Rf5+ {[%emt 0:01:00]} Kg6 {[%emt 0:00:39]} 59. Bd3 {[%emt 0:00:35]} e4 {[%emt 0:00:04]} 60. Rxf8 {[%emt 0:00:56]} Rxf8 {[%emt 0:00:12]} 61. Nxe4 {[%emt 0:00:06]} Ne5 {[%emt 0:02:34]} 62. Bc2 {[%emt 0:00:35]} Kh6 {[%emt 0:00:23]} 63. Nd6 {[%emt 0:00:00]} Rb4+ {[%emt 0:00:59]} 64. Kc1 {[%emt 0:00:00]} Nf3 {[%emt 0:00:21]} 65. Re6+ {[%emt 0:00:29]} Kg5 {[%emt 0:00:40]} 66. Bd3 {[%emt 0:00:37]} Ra8 {[%emt 0:02:14]} 67. Re4 {[%emt 0:00:58]} 1/2-1/2

[Event "Turkish Championship 2023"]
[Site "Kemer Antalya"]
[Date "2023.12.02"]
[Round "1"]
[White "Taspinar, Yanki"]
[Black "Metin, Enis"]
[Result "1/2-1/2"]
[ECO "A46"]
[WhiteElo "2318"]
[BlackElo "2031"]
[Annotator "ChessBase"]
[PlyCount "123"]
[EventDate "2023.12.01"]
[EventType "tourn"]
[EventCountry "TUR"]
[SourceTitle "playchess.com"]
[Source "ChessBase"]
[SourceQuality "1"]
[TimeControl "40/5400+30:1800+30"]

1. d4 {[%emt 0:01:00]} Nf6 {[%emt 0:01:00]} 2. Nf3 {[%emt 0:00:00]} e6 {[%emt 0:00:00]} 3. Bg5 {[%emt 0:00:00]} h6 {[%emt 0:02:00]} 4. Bh4 {[%emt 0:01:30]} b6 {[%emt 0:00:30]} 5. e3 {[%emt 0:00:30]} Bb7 {[%emt 0:00:30]} 6. Nbd2 {[%emt 0:01:30]} Be7 {[%emt 0:03:30]} 7. c3 {[%emt 0:12:30]} O-O {[%emt 0:03:30]} 8. Bd3 {[%emt 0:01:30]} d6 {[%emt 0:15:30]} 9. Bxf6 {[%emt 0:22:30]} Bxf6 {[%emt 0:00:30]} 10. Qe2 {[%emt 0:01:30]} c5 {[%emt 0:06:30]} 11. O-O {[%emt 0:03:30]} Nc6 {[%emt 0:09:30]} 12. Ne4 {[%emt 0:11:30]} Be7 {[%emt 0:09:30]} 13. Rad1 {[%emt 0:01:30]} d5 {[%emt 0:22:30]} 14. Ng3 {[%emt 0:00:30]} cxd4 {[%emt 0:01:30]} 15. exd4 {[%emt 0:00:30]} Bd6 {[%emt 0:00:00]} 16. Rfe1 {[%emt 0:01:30]} Qc7 {[%emt 0:02:00]} 17. Bb1 {[%emt 0:06:30]} Rae8 {[%emt 0:00:44]} 18. Ne5 {[%emt 0:05:30]} f5 {[%emt 0:08:57]} 19. Nxc6 {[%emt 0:07:18]} Bxc6 {[%emt 0:00:17]} 20. Nf1 {[%emt 0:03:52]} Ba4 {[%emt 0:01:38]} 21. Bc2 {[%emt 0:04:53]} Bxc2 {[%emt 0:01:45]} 22. Qxc2 {[%emt 0:00:30]} b5 {[%emt 0:00:00]} 23. Qb3 {[%emt 0:04:17]} a6 {[%emt 0:00:06]} 24. Re2 {[%emt 0:01:27]} Qc6 {[%emt 0:06:56]} 25. Nd2 {[%emt 0:02:01]} a5 {[%emt 0:00:50]} 26. a3 {[%emt 0:04:24]} b4 {[%emt 0:01:01]} 27. cxb4 {[%emt 0:01:35]} axb4 {[%emt 0:00:30]} 28. a4 {[%emt 0:00:30]} Ra8 {[%emt 0:00:00]} 29. Rde1 {[%emt 0:00:18]} Rfe8 {[%emt 0:00:00]} 30. Ra1 {[%emt 0:00:23]} Qa6 {[%emt 0:02:46]} 31. Ree1 {[%emt 0:00:23]} Bf4 {[%emt 0:00:39]} 32. Nf3 {[%emt 0:01:05]} Qc4 {[%emt 0:00:04]} 33. Qd1 {[%emt 0:00:02]} b3 {[%emt 0:00:36]} 34. g3 {[%emt 0:00:19]} Bd6 {[%emt 0:00:39]} 35. Re3 {[%emt 0:00:39]} Rxa4 {[%emt 0:00:36]} 36. Rc1 {[%emt 0:00:28]} Qb5 {[%emt 0:01:15]} 37. Rxb3 {[%emt 0:00:12]} Rb4 {[%emt 0:00:00]} 38. Rxb4 {[%emt 0:00:33]} Qxb4 {[%emt 0:00:00]} 39. Qe2 {[%emt 0:00:11]} Qb6 {[%emt 0:01:01]} 40. Ra1 {[%emt 0:00:00]} Qc7 {[%emt 0:00:00]} 41. Ra6 {[%emt 0:03:10]} f4 {[%emt 0:06:10]} 42. Kg2 {[%emt 0:03:30]} fxg3 {[%emt 0:00:30]} 43. hxg3 {[%emt 0:00:30]} Qd7 {[%emt 0:07:09]} 44. Qc2 {[%emt 0:14:59]} Rd8 {[%emt 0:04:43]} 45. Qd3 {[%emt 0:05:20]} Qb7 {[%emt 0:04:46]} 46. Qe2 {[%emt 0:00:28]} Qf7 {[%emt 0:04:02]} 47. b4 {[%emt 0:05:59]} Bxb4 {[%emt 0:00:28]} 48. Ne5 {[%emt 0:00:17]} Qb7 {[%emt 0:00:54]} 49. Rxe6 {[%emt 0:01:25]} Bd6 {[%emt 0:00:51]} 50. Qh5 {[%emt 0:00:31]} Bxe5 {[%emt 0:00:31]} 51. Qxe5 {[%emt 0:00:27]} Qf7 {[%emt 0:00:21]} 52. Re7 {[%emt 0:00:31]} Qg6 {[%emt 0:00:24]} 53. Kh3 {[%emt 0:00:32]} Rf8 {[%emt 0:00:17]} 54. Qxd5+ {[%emt 0:00:19]} Kh7 {[%emt 0:00:03]} 55. f4 {[%emt 0:00:38]} Rf5 {[%emt 0:00:25]} 56. Re5 {[%emt 0:00:32]} Rxe5 {[%emt 0:02:19]} 57. Qxe5 {[%emt 0:00:30]} Qb1 {[%emt 0:00:00]} 58. Kg2 {[%emt 0:00:31]} Qc2+ {[%emt 0:00:15]} 59. Kf3 {[%emt 0:00:07]} Qd1+ {[%emt 0:00:00]} 60. Kg2 {[%emt 0:00:48]} Qc2+ {[%emt 0:00:06]} 61. Kg1 {[%emt 0:00:00]} Qd1+ {[%emt 0:00:41]} 62. Kg2 {[%emt 0:00:04]} 1/2-1/2

[Event "Turkish Championship 2023"]
[Site "Kemer Antalya"]
[Date "2023.12.03"]
[Round "2"]
[White "Yilmazyerli, Mert"]
[Black "Bicer, Atakan Mert"]
[Result "1-0"]
[ECO "E16"]
[WhiteElo "2524"]
[BlackElo "2318"]
[Annotator "TA"]
[PlyCount "105"]
[EventDate "2023.12.01"]
[EventType "tourn"]
[EventCountry "TUR"]
[SourceTitle "playchess.com"]
[Source "ChessBase"]
[SourceQuality "1"]
[TimeControl "40/5400+30:1800+30"]

{[%evp 11,105,25,35,0,67,86,102,95,95,93,100,90,85,95,120,100,95,75,69,0,75,62,205,210,234,237,341,308,357,362,348,357,327,304,304,291,484,462,470,461,491,488,477,483,483,411,418,355,439,372,404,350,461,429,397,382,427,391,450,418,528,335,320,0,531,531,504,441,806,784,797,801,787,837,818,815,779,847,834,831,825,819,847,823,972,918,29979,29980,29980,29981,29979,29978,29983,29984,29983,29984]} 1. d4 {[%emt 0:01:00]} Nf6 {[%emt 0:01:00]} 2. c4 {[%emt 0:00:30]} e6 {[%emt 0:01:30]} 3. Nf3 {[%emt 0:00:30]} b6 {[%emt 0:03:30]} 4. g3 {[%emt 0:00:30]} Bb7 {[%emt 0:00:00]} 5. Bg2 {[%emt 0:00:00]} c5 {[%emt 0:07:00]} 6. d5 {[%emt 0:01:00]} exd5 {[%emt 0:00:00]} 7. cxd5 {[%emt 0:02:30] E16: Queen's Indian: 4 g3 Bb7 5 Bg2 Bb4+.} g6 {[%emt 0:07:00]} (7... Nxd5 $2 8. Nh4 $18) (7... Bxd5 $11 8. O-O Be7) 8. e4 {[%emt 0:04:30]} d6 {[%emt 0:01:30][%cal Ob7a6]} 9. O-O {[%emt 0:04:30] White is better.} Bg7 {[%emt 0:00:30][%cal Oe8g8]} 10. Nc3 {[%emt 0:01:30]} O-O {[%emt 0:00:30] [#]} 11. e5 $1 {[%emt 0:01:30]} dxe5 {[%emt 0:06:30]} 12. Nxe5 {[%emt 0:00:30] [#]} Na6 $146 {[%emt 0:00:00][%cal Of6d5]} ({Predecessor:} 12... Nxd5 13. Re1 Nd7 14. Bxd5 Bxd5 15. Nxd7 Bxc3 16. Qxd5 {1-0 Yilmaz,M (2636)-Gadimbayli,A (2404) EU-ch 20th Skopje 2019 (2)}) 13. Nc6 {[%emt 0:03:30] White has more active pieces. The black rooks are badly placed.} Qd7 {[%emt 0:23:00]} 14. Bg5 {[%emt 0:06:30]} h6 {[%emt 0:09:30]} 15. Bf4 {[%emt 0:00:30]} (15. Bxf6 $14 Bxf6 16. Qa4) 15... Rfe8 {[%emt 0:02:30]} (15... Nb4 $11 {keeps the balance.}) 16. Qb3 $16 {[%emt 0:05:30]} Nc7 {[%emt 0:18:26] [#] White now steadily converts the win.} (16... Nb4 $14) 17. Ne5 $1 $18 {[%emt 0:18:30]} Qc8 {[%emt 0:03:28][%cal Oc7d5]} 18. Rad1 {[%emt 0:06:30] Strongly threatening d6.} (18. d6 $6 Ne6 19. Nd5 Nd7 $16) 18... Rd8 {[%emt 0:09:08] [#]} (18... b5 {might work better.} 19. d6 (19. Nxb5 Nxb5 20. Qxb5 Ba6 $15) 19... c4 20. Bxb7 Qxb7 21. Nxc4 {[%mdl 64] Pin} Ne6 22. Qxb5 Qxb5 23. Nxb5 Nxf4) 19. Nxf7 $1 {[%emt 0:12:30][%mdl 512]} Kxf7 {[%emt 0:02:38]} (19... c4 20. Qxc4) 20. Bxc7 {[%emt 0:00:00] aiming for d6+.} c4 {[%emt 0:02:07]} 21. Qxc4 {[%emt 0:00:00] Black must now prevent d6+.} Ba6 {[%emt 0:00:22] [#]} 22. Qc6 {[%emt 0:01:30]} Bxf1 {[%emt 0:00:36]} 23. Kxf1 {[%emt 0:00:30]} (23. Bxd8 $6 Bxg2 24. Qxc8 (24. Kxg2 Qxd8 25. Qb7+ Kg8 $17) 24... Rxc8 $16) 23... Qf5 $2 {[%emt 0:00:36]} (23... Qd7 24. d6 Qxc6 25. Bxc6 Nd7) 24. d6 {[%emt 0:06:30]} (24. Bxd8 Rxd8 25. d6 Kg8 $18) 24... Rac8 {[%emt 0:00:22]} 25. Qb7 {[%emt 0:04:20]} Kg8 {[%emt 0:00:05]} 26. Bxd8 {[%emt 0:01:26]} ({Less strong is} 26. Qxa7 Rf8 27. Qxb6 Kh7 $18) 26... Rxd8 {[%emt 0:00:05]} 27. Qxa7 {[%emt 0:01:50]} Nd7 {[%emt 0:00:20]} 28. Qb7 {[%emt 0:00:58]} Kh7 {[%emt 0:00:28]} 29. Qe4 {[%emt 0:00:14]} Qc5 {[%emt 0:00:44]} 30. Qc6 {[%emt 0:07:14]} Qf5 {[%emt 0:00:25]} 31. Qd5 {[%emt 0:00:45]} Qf6 {[%emt 0:00:34]} 32. Rd2 {[%emt 0:01:00]} Ne5 {[%emt 0:00:40]} 33. h3 {[%emt 0:02:35] Dodges Ng4} Qf5 {[%emt 0:00:26]} 34. Kg1 {[%emt 0:00:34]} Qf8 {[%emt 0:01:03]} 35. Be4 {[%emt 0:01:59]} Nd7 {[%emt 0:00:17]} 36. Qd3 {[%emt 0:01:12]} Ne5 {[%emt 0:00:06]} 37. Qd5 {[%emt 0:00:00]} Nd7 $1 {[%emt 0:00:30]} 38. Bc2 {[%emt 0:00:36]} Qf6 {[%emt 0:00:43]} 39. Ne4 {[%emt 0:00:41] Prevents Qg5} Qxb2 {[%emt 0:00:38] [#]} (39... Qf8 $142 40. Nc3 Qf6) 40. Ng5+ $1 {[%emt 0:00:34][%mdl 512]} hxg5 {[%emt 0:00:30] [#]} 41. Bxg6+ $1 {[%emt 0:30:30][%mdl 576] Discovered Attack} Kxg6 {[%emt 0:00:43]} 42. Rxb2 {[%emt 0:00:00]} Bxb2 {[%emt 0:00:30]} 43. h4 {[%emt 0:00:00]} Bf6 {[%emt 0:00:30]} 44. hxg5 {[%emt 0:00:00]} Bxg5 {[%emt 0:00:30]} 45. f4 {[%emt 0:00:00]} Bf6 {[%emt 0:00:30]} 46. g4 {[%emt 0:00:00][%cal Bg3g4,Bg4g5][%mdl 32]} Nc5 {[%emt 0:02:30] [#]} 47. a4 $1 {[%emt 0:00:00][%mdl 512]} Nd7 {[%emt 0:02:30]} (47... Kg7 48. a5) 48. g5 {[%emt 0:00:00]} Bg7 {[%emt 0:00:30]} 49. Qe4+ {[%emt 0:00:00] White mates.} Kh5 {[%emt 0:01:30]} 50. Qh7+ {[%emt 0:00:00]} Kg4 {[%emt 0:00:00]} 51. Qxg7 {[%emt 0:00:00]} Kg3 {[%emt 0:00:00]} 52. Qc3+ {[%emt 0:00:00]} Kxf4 {[%emt 0:00:00]} 53. Qc7 {[%emt 0:00:00] Magnificent play by Yilmazyerli!   Weighted Error Value: White=0.34/Black=0.48} 1-0